[Event "TePe Sigeman Chess Tournament 2026"]
[Site "Elite Plaza Hotel, Gustav Adolfs Torg 49, Malmo, Sweden"]
[Date "2026.05.01"]
[Round "1.1"]
[White "Woodward, Andy"]
[Black "Grandelius, Nils"]
[Result "1-0"]
[TimeControl "90 minutes for 40 moves + 30 minutes for the rest of the game + 30 seconds per move from move one."]
[WhiteTitle "GM"]
[BlackTitle "GM"]
[WhiteFideId "30953499"]
[BlackFideId "1710400"]
[WhiteElo "2635"]
[BlackElo "2662"]

1. d4 {[%clk 01:30:57]} {[%emt 00:00:02]} d5 {[%clk 01:30:36]} {[%emt
00:00:23]} 2. c4 {[%clk 01:31:14]} {[%emt 00:00:13]} e6 {[%clk 01:30:43]}
{[%emt 00:00:23]} 3. Nf3 {[%clk 01:31:33]} {[%emt 00:00:11]} Nf6 {[%clk
01:30:38]} {[%emt 00:00:35]} 4. Nc3 {[%clk 01:31:24]} {[%emt 00:00:39]} h6
{[%clk 01:29:22]} {[%emt 00:01:46]} 5. g3 {[%clk 01:26:19]} {[%emt 00:05:35]}
Be7 {[%clk 01:29:00]} {[%emt 00:00:53]} 6. Bg2 {[%clk 01:23:43]} {[%emt
00:03:06]} O-O {[%clk 01:28:51]} {[%emt 00:00:39]} 7. O-O {[%clk 01:17:50]}
{[%emt 00:06:23]} dxc4 {[%clk 01:28:32]} {[%emt 00:00:48]} 8. Ne5 {[%clk
01:18:09]} {[%emt 00:00:11]} Nc6 {[%clk 01:28:25]} {[%emt 00:00:37]} 9. Bxc6
{[%clk 01:18:30]} {[%emt 00:00:10]} bxc6 {[%clk 01:28:48]} {[%emt 00:00:06]} 10.
Nxc6 {[%clk 01:18:54]} {[%emt 00:00:08]} Qe8 {[%clk 01:28:48]} {[%emt
00:00:29]} 11. Nxe7+ {[%clk 01:19:17]} {[%emt 00:00:08]} Qxe7 {[%clk 01:29:11]}
{[%emt 00:00:06]} 12. Be3 {[%clk 01:19:36]} {[%emt 00:00:11]} a5 {[%clk
01:13:39]} {[%emt 00:16:03]} 13. f3 {[%clk 01:12:59]} {[%emt 00:07:07]} Rd8
{[%clk 01:07:50]} {[%emt 00:06:19]} 14. Qc1 {[%clk 01:09:42]} {[%emt 00:03:47]}
e5 {[%clk 01:00:51]} {[%emt 00:07:29]} 15. dxe5 {[%clk 01:08:29]} {[%emt
00:01:44]} Qxe5 {[%clk 01:01:11]} {[%emt 00:00:09]} 16. Bf4 {[%clk 01:07:18]}
{[%emt 00:01:41]} Qc5+ {[%clk 01:00:17]} {[%emt 00:01:25]} 17. Qe3 {[%clk
01:06:52]} {[%emt 00:00:56]} Qxe3+ {[%clk 00:51:24]} {[%emt 00:09:23]} 18. Bxe3
{[%clk 01:07:14]} {[%emt 00:00:08]} Nd5 {[%clk 00:50:36]} {[%emt 00:01:18]} 19.
Rfd1 {[%clk 01:04:00]} {[%emt 00:03:44]} Be6 {[%clk 00:50:56]} {[%emt
00:00:10]} 20. Bd4 {[%clk 00:55:58]} {[%emt 00:08:32]} f6 {[%clk 00:40:35]}
{[%emt 00:10:51]} 21. g4 {[%clk 00:47:14]} {[%emt 00:09:14]} Kf7 {[%clk
00:36:29]} {[%emt 00:04:35]} 22. Nxd5 {[%clk 00:35:47]} {[%emt 00:11:57]} Rxd5
{[%clk 00:36:31]} {[%emt 00:00:28]} 23. Bc3 {[%clk 00:36:09]} {[%emt 00:00:08]}
Rxd1+ {[%clk 00:28:51]} {[%emt 00:08:11]} 24. Rxd1 {[%clk 00:36:22]} {[%emt
00:00:17]} a4 {[%clk 00:29:18]} {[%emt 00:00:04]} 25. a3 {[%clk 00:36:32]}
{[%emt 00:00:19]} Ke7 {[%clk 00:28:01]} {[%emt 00:01:47]} 26. Kf2 {[%clk
00:34:39]} {[%emt 00:02:23]} Rd8 {[%clk 00:28:19]} {[%emt 00:00:12]} 27. Bb4+
{[%clk 00:34:49]} {[%emt 00:00:21]} Ke8 {[%clk 00:28:20]} {[%emt 00:00:28]} 28.
Rxd8+ {[%clk 00:35:10]} {[%emt 00:00:10]} Kxd8 {[%clk 00:28:47]} {[%emt
00:00:03]} 29. Bf8 {[%clk 00:35:31]} {[%emt 00:00:09]} g5 {[%clk 00:22:22]}
{[%emt 00:06:54]} 30. Bxh6 {[%clk 00:35:52]} {[%emt 00:00:10]} Ke7 {[%clk
00:22:51]} {[%emt 00:00:02]} 31. Kg3 {[%clk 00:36:07]} {[%emt 00:00:14]} c3
{[%clk 00:21:47]} {[%emt 00:01:33]} 32. bxc3 {[%clk 00:36:26]} {[%emt
00:00:11]} Bc4 {[%clk 00:22:14]} {[%emt 00:00:04]} 33. e4 {[%clk 00:36:44]}
{[%emt 00:00:12]} Be2 {[%clk 00:14:02]} {[%emt 00:08:42]} 34. e5 {[%clk
00:27:08]} {[%emt 00:10:06]} fxe5 {[%clk 00:10:27]} {[%emt 00:04:04]} 35. Bxg5+
{[%clk 00:27:32]} {[%emt 00:00:07]} Ke6 {[%clk 00:09:30]} {[%emt 00:01:27]} 36.
Kf2 {[%clk 00:27:32]} {[%emt 00:00:30]} Bd1 {[%clk 00:08:49]} {[%emt 00:01:11]}
37. Ke3 {[%clk 00:27:45]} {[%emt 00:00:17]} c6 {[%clk 00:06:59]} {[%emt
00:02:20]} 38. h4 {[%clk 00:27:58]} {[%emt 00:00:17]} Kd5 {[%clk 00:05:50]}
{[%emt 00:01:39]} 39. h5 {[%clk 00:27:48]} {[%emt 00:00:40]} Ke6 {[%clk
00:02:10]} {[%emt 00:04:09]} 40. Bh4 {[%clk 00:27:48]} {[%emt 00:00:31]} Bc2
{[%clk 00:00:38]} {[%emt 00:02:03]} 41. Bg3 {[%clk 00:27:29]} {[%emt 00:00:48]}
Kf6 {[%clk 00:25:37]} {[%emt 00:05:31]} 42. c4 {[%clk 00:55:34]} {[%emt
00:02:25]} Bb3 {[%clk 00:21:12]} {[%emt 00:04:55]} 43. h6 {[%clk 00:55:54]}
{[%emt 00:00:10]} Bc2 {[%clk 00:21:39]} {[%emt 00:00:04]} 44. Bxe5+ {[%clk
00:55:17]} {[%emt 00:01:07]} Kxe5 {[%clk 00:21:33]} {[%emt 00:00:36]} 45. f4+
{[%clk 00:55:43]} {[%emt 00:00:04]} Kf6 {[%clk 00:21:27]} {[%emt 00:00:35]} 46.
f5 {[%clk 00:56:06]} {[%emt 00:00:07]} 1-0

[Event "TePe Sigeman Chess Tournament 2026"]
[Site "Elite Plaza Hotel, Gustav Adolfs Torg 49, Malmo, Sweden"]
[Date "2026.05.01"]
[Round "1.2"]
[White "Zhu, Jiner"]
[Black "Abdusattorov, Nodirbek"]
[Result "0-1"]
[TimeControl "90 minutes for 40 moves + 30 minutes for the rest of the game + 30 seconds per move from move one."]
[WhiteTitle "GM"]
[BlackTitle "GM"]
[WhiteFideId "8608059"]
[BlackFideId "14204118"]
[WhiteElo "2546"]
[BlackElo "2780"]

1. e4 {[%clk 01:30:55]} {[%emt 00:00:04]} c6 {[%emt 00:01:13]} 2. d4 {[%clk
01:30:59]} d5 {[%clk 01:30:36]} {[%emt 00:00:07]} 3. e5 {[%clk 01:31:21]}
{[%emt 00:00:08]} Bf5 {[%clk 01:30:33]} {[%emt 00:00:33]} 4. Nd2 {[%clk
01:30:44]} {[%emt 00:01:08]} e6 {[%clk 01:30:31]} {[%emt 00:00:32]} 5. Nb3
{[%clk 01:31:03]} {[%emt 00:00:12]} Ne7 {[%clk 01:28:55]} {[%emt 00:02:05]} 6.
Nf3 {[%clk 01:29:55]} {[%emt 00:01:38]} Nd7 {[%clk 01:28:03]} {[%emt 00:01:22]}
7. Be2 {[%clk 01:30:15]} {[%emt 00:00:10]} h6 {[%clk 01:28:23]} {[%emt
00:00:09]} 8. O-O {[%clk 01:29:27]} {[%emt 00:01:19]} a5 {[%clk 01:28:34]}
{[%emt 00:00:19]} 9. a4 {[%clk 01:29:22]} {[%emt 00:00:35]} Bg6 {[%clk
01:28:47]} {[%emt 00:00:16]} 10. Bd2 {[%clk 01:12:20]} {[%emt 00:17:33]} Nf5
{[%clk 01:28:43]} {[%emt 00:00:34]} 11. Rc1 {[%clk 01:09:46]} {[%emt 00:03:04]}
Bb4 {[%clk 01:27:29]} {[%emt 00:01:43]} 12. Qe1 {[%clk 01:01:07]} {[%emt
00:09:09]} Bxd2 {[%clk 01:26:13]} {[%emt 00:01:46]} 13. Qxd2 {[%clk 01:01:23]}
{[%emt 00:00:14]} O-O {[%clk 01:25:52]} {[%emt 00:00:51]} 14. Bd3 {[%clk
00:50:45]} {[%emt 00:11:09]} Qb6 {[%clk 01:21:43]} {[%emt 00:04:37]} 15. Rfe1
{[%clk 00:41:30]} {[%emt 00:09:46]} Rfc8 {[%clk 01:20:47]} {[%emt 00:01:26]} 16.
Ra1 {[%clk 00:38:00]} {[%emt 00:04:00]} Ne7 {[%clk 01:15:52]} {[%emt 00:05:24]}
17. Bxg6 {[%clk 00:37:56]} {[%emt 00:00:34]} Nxg6 {[%clk 01:16:15]} {[%emt
00:00:07]} 18. Ra3 {[%clk 00:32:14]} {[%emt 00:06:12]} c5 {[%clk 01:07:21]}
{[%emt 00:09:24]} 19. dxc5 {[%clk 00:31:50]} {[%emt 00:00:54]} Nxc5 {[%clk
01:06:12]} {[%emt 00:01:39]} 20. Nxc5 {[%clk 00:31:51]} {[%emt 00:00:29]} Rxc5
{[%clk 01:06:37]} {[%emt 00:00:05]} 21. Rc3 {[%clk 00:30:43]} {[%emt 00:01:39]}
Rxc3 {[%clk 00:57:31]} {[%emt 00:09:35]} 22. Qxc3 {[%clk 00:30:57]} {[%emt
00:00:16]} Ne7 {[%clk 00:57:47]} {[%emt 00:00:13]} 23. Nd4 {[%clk 00:24:17]}
{[%emt 00:07:11]} Rc8 {[%clk 00:56:47]} {[%emt 00:01:30]} 24. Qd2 {[%clk
00:22:02]} {[%emt 00:02:45]} Qxb2 {[%clk 00:57:05]} {[%emt 00:00:13]} 25. h3
{[%clk 00:22:10]} {[%emt 00:00:22]} Qb4 {[%clk 00:54:07]} {[%emt 00:03:28]} 26.
Qxb4 {[%clk 00:22:18]} {[%emt 00:00:22]} axb4 {[%clk 00:54:33]} {[%emt
00:00:04]} 27. a5 {[%clk 00:19:45]} {[%emt 00:03:03]} Rc4 {[%clk 00:54:14]}
{[%emt 00:00:48]} 28. Rd1 {[%clk 00:19:36]} {[%emt 00:00:39]} Ng6 {[%clk
00:52:59]} {[%emt 00:01:45]} 29. Nf3 {[%clk 00:15:43]} {[%emt 00:04:24]} Rxc2
{[%clk 00:53:23]} {[%emt 00:00:06]} 30. Rb1 {[%clk 00:16:08]} {[%emt 00:00:05]}
Rc4 {[%clk 00:53:46]} {[%emt 00:00:06]} 31. Nd2 {[%clk 00:15:23]} {[%emt
00:01:15]} Rc5 {[%clk 00:53:27]} {[%emt 00:00:48]} 32. Rxb4 {[%clk 00:15:17]}
{[%emt 00:00:37]} Nxe5 {[%clk 00:53:46]} {[%emt 00:00:11]} 33. Nb3 {[%clk
00:14:40]} {[%emt 00:01:07]} Rc7 {[%clk 00:54:09]} {[%emt 00:00:06]} 34. Rb5
{[%clk 00:15:01]} {[%emt 00:00:10]} Nc4 {[%clk 00:53:37]} {[%emt 00:01:02]} 35.
Kf1 {[%clk 00:14:54]} {[%emt 00:00:38]} Kf8 {[%clk 00:53:33]} {[%emt 00:00:34]}
36. Ke2 {[%clk 00:14:57]} {[%emt 00:00:26]} Ke7 {[%clk 00:53:53]} {[%emt
00:00:10]} 37. f4 {[%clk 00:14:53]} {[%emt 00:00:35]} Nd6 {[%clk 00:53:57]}
{[%emt 00:00:27]} 38. Rb4 {[%clk 00:15:18]} {[%emt 00:00:05]} Rc4 {[%clk
00:54:12]} {[%emt 00:00:15]} 0-1

[Event "TePe Sigeman Chess Tournament 2026"]
[Site "Elite Plaza Hotel, Gustav Adolfs Torg 49, Malmo, Sweden"]
[Date "2026.05.01"]
[Round "1.3"]
[White "Carlsen, Magnus"]
[Black "Erigaisi, Arjun"]
[Result "1/2-1/2"]
[TimeControl "90 minutes for 40 moves + 30 minutes for the rest of the game + 30 seconds per move from move one."]
[WhiteTitle "GM"]
[BlackTitle "GM"]
[WhiteFideId "1503014"]
[BlackFideId "35009192"]
[WhiteElo "2840"]
[BlackElo "2751"]

1. e4 {[%clk 01:30:30]} {[%emt 00:11:08]} e5 {[%clk 01:30:48]} {[%emt
00:00:31]} 2. Nf3 {[%clk 01:31:15]} {[%emt 00:00:08]} Nf6 {[%clk 01:31:10]}
{[%emt 00:00:08]} 3. Nxe5 {[%clk 01:22:02]} {[%emt 00:09:43]} d6 {[%clk
01:31:33]} {[%emt 00:00:07]} 4. Nd3 {[%clk 01:16:21]} {[%emt 00:06:11]} Nxe4
{[%clk 01:31:17]} {[%emt 00:00:46]} 5. Qe2 {[%clk 01:16:40]} {[%emt 00:00:11]}
Qe7 {[%clk 01:31:40]} {[%emt 00:00:07]} 6. Nf4 {[%clk 01:16:59]} {[%emt
00:00:11]} Nf6 {[%clk 01:31:14]} {[%emt 00:00:57]} 7. Nc3 {[%clk 01:14:35]}
{[%emt 00:02:54]} c6 {[%clk 01:27:17]} {[%emt 00:04:27]} 8. d4 {[%clk
01:14:27]} {[%emt 00:00:37]} Qxe2+ {[%clk 01:27:13]} {[%emt 00:00:33]} 9. Bxe2
{[%clk 01:08:54]} {[%emt 00:06:04]} Bf5 {[%clk 01:27:00]} {[%emt 00:00:43]} 10.
Bd3 {[%clk 01:05:20]} {[%emt 00:04:04]} Bxd3 {[%clk 01:26:36]} {[%emt
00:00:54]} 11. Nxd3 {[%clk 01:05:43]} {[%emt 00:00:06]} Na6 {[%clk 01:21:35]}
{[%emt 00:05:32]} 12. f3 {[%clk 01:04:41]} {[%emt 00:01:32]} Kd7 {[%clk
01:19:34]} {[%emt 00:02:31]} 13. Kf2 {[%clk 01:04:05]} {[%emt 00:01:06]} g6
{[%clk 01:15:08]} {[%emt 00:04:56]} 14. a4 {[%clk 00:58:46]} {[%emt 00:05:50]}
Bg7 {[%clk 01:13:04]} {[%emt 00:02:34]} 15. Bd2 {[%clk 00:58:10]} {[%emt
00:01:05]} h5 {[%clk 01:05:29]} {[%emt 00:08:06]} 16. Ne2 {[%clk 00:53:36]}
{[%emt 00:05:04]} Bh6 {[%clk 01:02:56]} {[%emt 00:03:04]} 17. Bxh6 {[%clk
00:52:18]} {[%emt 00:01:48]} Rxh6 {[%clk 01:03:21]} {[%emt 00:00:05]} 18. b4
{[%clk 00:47:35]} {[%emt 00:05:13]} Nc7 {[%clk 01:01:49]} {[%emt 00:02:01]} 19.
b5 {[%clk 00:47:27]} {[%emt 00:00:39]} Rhh8 {[%clk 00:57:25]} {[%emt 00:04:54]}
20. c4 {[%clk 00:44:58]} {[%emt 00:02:59]} Ne6 {[%clk 00:51:30]} {[%emt
00:06:25]} 21. Rab1 {[%clk 00:39:51]} {[%emt 00:05:37]} c5 {[%clk 00:43:16]}
{[%emt 00:08:45]} 22. d5 {[%clk 00:36:01]} {[%emt 00:04:19]} Ng7 {[%clk
00:42:01]} {[%emt 00:01:45]} 23. a5 {[%clk 00:28:57]} {[%emt 00:07:34]} Rae8
{[%clk 00:39:36]} {[%emt 00:02:54]} 24. a6 {[%clk 00:22:04]} {[%emt 00:07:24]}
b6 {[%clk 00:39:59]} {[%emt 00:00:07]} 25. Nc3 {[%clk 00:22:04]} {[%emt
00:00:29]} Nf5 {[%clk 00:38:05]} {[%emt 00:02:24]} 26. Rhe1 {[%clk 00:21:34]}
{[%emt 00:01:00]} Nd4 {[%clk 00:36:11]} {[%emt 00:02:25]} 27. h4 {[%clk
00:21:19]} {[%emt 00:00:44]} Nc2 {[%clk 00:33:25]} {[%emt 00:03:17]} 28. Rxe8
{[%clk 00:21:18]} {[%emt 00:00:30]} Rxe8 {[%clk 00:33:50]} {[%emt 00:00:06]} 29.
Rc1 {[%clk 00:18:58]} {[%emt 00:02:50]} Ne3 {[%clk 00:32:48]} {[%emt 00:01:32]}
30. Nd1 {[%clk 00:18:02]} {[%emt 00:01:25]} Nf5 {[%clk 00:31:06]} {[%emt
00:02:13]} 31. g3 {[%clk 00:17:23]} {[%emt 00:01:08]} Kd8 {[%clk 00:24:33]}
{[%emt 00:07:03]} 32. Nc3 {[%clk 00:14:41]} {[%emt 00:03:12]} Ne3 {[%clk
00:17:21]} {[%emt 00:07:43]} 33. Nd1 {[%clk 00:04:31]} {[%emt 00:10:40]} Nf5
{[%clk 00:17:40]} {[%emt 00:00:10]} 34. Nc3 {[%clk 00:04:56]} {[%emt 00:00:05]}
Ne3 {[%clk 00:17:50]} {[%emt 00:00:20]} 35. Nb2 {[%clk 00:03:59]} {[%emt
00:01:27]} Nf5 {[%clk 00:17:34]} {[%emt 00:00:47]} 36. Nd3 {[%clk 00:01:24]}
{[%emt 00:03:05]} 1/2-1/2

[Event "TePe Sigeman Chess Tournament 2026"]
[Site "Elite Plaza Hotel, Gustav Adolfs Torg 49, Malmo, Sweden"]
[Date "2026.05.01"]
[Round "1.4"]
[White "Van Foreest, Jorden"]
[Black "Erdogmus, Yagiz Kaan"]
[Result "1/2-1/2"]
[TimeControl "90 minutes for 40 moves + 30 minutes for the rest of the game + 30 seconds per move from move one."]
[WhiteTitle "GM"]
[BlackTitle "GM"]
[WhiteFideId "1039784"]
[BlackFideId "44599790"]
[WhiteElo "2735"]
[BlackElo "2708"]

1. d4 {[%clk 01:30:56]} {[%emt 00:00:03]} Nf6 {[%clk 01:30:55]} {[%emt
00:00:06]} 2. c4 {[%clk 01:31:12]} {[%emt 00:00:13]} e6 {[%clk 01:31:21]}
{[%emt 00:00:04]} 3. Nf3 {[%clk 01:31:25]} {[%emt 00:00:17]} d5 {[%clk
01:31:46]} {[%emt 00:00:06]} 4. g3 {[%clk 01:31:16]} {[%emt 00:00:38]} Be7
{[%clk 01:31:52]} {[%emt 00:00:24]} 5. Bg2 {[%clk 01:31:15]} {[%emt 00:00:31]}
O-O {[%clk 01:31:58]} {[%emt 00:00:25]} 6. O-O {[%clk 01:31:15]} {[%emt
00:00:29]} dxc4 {[%clk 01:32:09]} {[%emt 00:00:21]} 7. Qc2 {[%clk 01:30:58]}
{[%emt 00:00:46]} a6 {[%clk 01:32:34]} {[%emt 00:00:06]} 8. a4 {[%clk
01:30:39]} {[%emt 00:00:49]} b6 {[%clk 01:32:43]} {[%emt 00:00:21]} 9. Ne5
{[%clk 01:26:25]} {[%emt 00:04:44]} Ra7 {[%clk 01:33:05]} {[%emt 00:00:09]} 10.
Rd1 {[%clk 01:24:52]} {[%emt 00:02:02]} Bb7 {[%clk 01:32:43]} {[%emt 00:00:52]}
11. e4 {[%clk 01:23:22]} {[%emt 00:02:00]} Nc6 {[%clk 01:32:00]} {[%emt
00:01:14]} 12. Nxc6 {[%clk 01:22:53]} {[%emt 00:00:59]} Bxc6 {[%clk 01:32:27]}
{[%emt 00:00:02]} 13. Nc3 {[%clk 01:22:19]} {[%emt 00:01:05]} Ba8 {[%clk
01:27:21]} {[%emt 00:05:37]} 14. Be3 {[%clk 01:07:59]} {[%emt 00:14:48]} Qc8
{[%clk 00:52:39]} {[%emt 00:35:12]} 15. Qe2 {[%clk 00:56:09]} {[%emt 00:12:20]}
c5 {[%clk 00:45:14]} {[%emt 00:07:55]} 16. d5 {[%clk 00:52:50]} {[%emt
00:03:48]} exd5 {[%clk 00:41:13]} {[%emt 00:04:31]} 17. exd5 {[%clk 00:51:57]}
{[%emt 00:01:23]} Rd8 {[%clk 00:34:23]} {[%emt 00:07:20]} 18. Qxc4 {[%clk
00:48:50]} {[%emt 00:03:36]} h6 {[%clk 00:27:19]} {[%emt 00:07:36]} 19. Bf4
{[%clk 00:41:20]} {[%emt 00:08:00]} Bf8 {[%clk 00:20:52]} {[%emt 00:06:57]} 20.
Re1 {[%clk 00:35:31]} {[%emt 00:06:18]} b5 {[%clk 00:14:22]} {[%emt 00:07:01]}
21. axb5 {[%clk 00:35:31]} {[%emt 00:00:30]} axb5 {[%clk 00:14:50]} {[%emt
00:00:01]} 22. Qxb5 {[%clk 00:34:05]} {[%emt 00:01:56]} Rxa1 {[%clk 00:15:11]}
{[%emt 00:00:09]} 23. Rxa1 {[%clk 00:34:31]} {[%emt 00:00:04]} Nxd5 {[%clk
00:13:33]} {[%emt 00:02:09]} 24. Rxa8 {[%clk 00:28:37]} {[%emt 00:06:24]} Qxa8
{[%clk 00:13:57]} {[%emt 00:00:05]} 25. Bxd5 {[%clk 00:28:15]} {[%emt
00:00:51]} Rxd5 {[%clk 00:14:22]} {[%emt 00:00:05]} 26. Nxd5 {[%clk 00:28:44]}
{[%emt 00:00:02]} Qxd5 {[%clk 00:14:47]} {[%emt 00:00:05]} 27. b3 {[%clk
00:29:05]} {[%emt 00:00:08]} Qd1+ {[%clk 00:15:08]} {[%emt 00:00:09]} 28. Kg2
{[%clk 00:29:32]} {[%emt 00:00:04]} Qd5+ {[%clk 00:15:36]} {[%emt 00:00:03]} 29.
Kg1 {[%clk 00:29:52]} {[%emt 00:00:09]} Qd1+ {[%clk 00:16:00]} {[%emt
00:00:06]} 30. Kg2 {[%clk 00:30:17]} {[%emt 00:00:05]} Qd5+ {[%clk 00:16:21]}
{[%emt 00:00:09]} 1/2-1/2